bitfinex/quotes_BTCUSD_20250515
["timestamp","ask_amount","ask_price","bid_price","bid_amount"]
[1747333640836,0.05050389,103600.0,103590.0,0.66718214]
[1747333641351,0.05050389,103600.0,103590.0,0.33387825]
[1747333641562,0.2542064,103600.0,103590.0,0.63822296]
[1747333641787,0.25420705,103600.0,103590.0,0.6478764]
[1747333641993,0.25420705,103600.0,103590.0,0.3338791]
[1747333642411,0.25520705,103600.0,103590.0,0.3338791]
[1747333642770,0.25520705,103600.0,103590.0,0.34353226]
[1747333643184,0.25520705,103600.0,103590.0,0.35318523]
[1747333643900,0.25520705,103600.0,103590.0,0.68648912]
[1747333644252,0.25520705,103600.0,103590.0,0.68648856]
[1747333645728,0.25520705,103600.0,103590.0,0.68148856]
[1747333648068,0.06215686,103600.0,103590.0,0.68148856]
[1747333648255,0.0525038,103600.0,103590.0,0.681488]
[1747333648628,0.05250362,103600.0,103590.0,0.681488]
[1747333649036,0.06215566,103600.0,103590.0,0.681488]
[1747333650342,0.07180789,103600.0,103590.0,0.681488]
[1747333650675,0.06215566,103600.0,103590.0,0.681488]
[1747333651241,0.05250362,103600.0,103590.0,0.681488]
[1747333651418,0.05250343,103600.0,103590.0,0.681488]
[1747333651622,0.07180732,103600.0,103590.0,0.681488]
[1747333652264,0.0332,103600.0,103590.0,1.01479189]
[1747333652719,0.0179,103600.0,103590.0,1.01479189]
[1747333654510,0.002,103600.0,103590.0,1.01479189]
[1747333657548,0.0175,103600.0,103590.0,1.01479189]
[1747333659101,0.0333,103600.0,103590.0,0.681488]
[1747333659314,0.07190862,103600.0,103590.0,0.67183522]
[1747333659531,0.06225612,103600.0,103590.0,0.681488]
[1747333659938,0.26495881,103600.0,103590.0,0.65252937]
[1747333660084,0.26495881,103600.0,103590.0,0.65264149]
[1747333660285,0.26495881,103600.0,103590.0,0.32899048]
[1747333660603,0.26495881,103600.0,103590.0,0.686488]
[1747333662038,0.06225612,103600.0,103590.0,0.686488]
[1747333662350,0.26495881,103600.0,103590.0,0.65752937]
[1747333662597,0.20272198,103590.0,103580.0,0.54569934]
[1747333662819,0.06065882,103590.0,103580.0,0.67685768]
[1747333663046,0.05100566,103590.0,103580.0,0.67685768]
[1747333663306,0.05100566,103590.0,103570.0,0.2122619]
[1747333663307,0.0606617,103580.0,103570.0,0.2122619]
[1747333663523,0.25374982,103580.0,103570.0,0.10682694]
[1747333663745,0.24409592,103580.0,103570.0,0.31924337]
[1747333663955,0.24409592,103580.0,103570.0,0.3288983]
[1747333665018,0.24409592,103580.0,103570.0,0.31924337]
[1747333665230,0.24409592,103580.0,103570.0,0.64302972]
[1747333665443,0.24409592,103580.0,103570.0,0.65568465]
[1747333665659,0.24409592,103580.0,103570.0,0.65868465]
[1747333665881,0.24409592,103580.0,103570.0,0.66833948]
[1747333666314,0.24409592,103580.0,103570.0,0.67799413]
[1747333666315,0.25375029,103580.0,103570.0,0.67799413]
[1747333667065,0.25375029,103580.0,103570.0,0.31572583]
[1747333667373,0.25375029,103580.0,103570.0,0.66851491]
[1747333667737,0.24409611,103580.0,103570.0,0.66851491]
[1747333668373,0.24409611,103580.0,103570.0,0.33521102]
[1747333668571,0.23444183,103580.0,103570.0,0.33521102]
[1747333669148,0.22478746,103580.0,103570.0,0.01583017]
[1747333669348,1.18703747,103580.0,103570.0,0.006]
[1747333669552,0.85373358,103580.0,103570.0,0.006]
[1747333669794,0.77578746,103580.0,103570.0,0.006]
[1747333670259,0.77578746,103580.0,103570.0,0.003]
[1747333670458,0.77878746,103580.0,103570.0,0.003]
[1747333670692,0.23566141,103570.0,103560.0,1.51743989]
[1747333670868,0.23566141,103570.0,103560.0,1.62440543]
[1747333670869,0.05220976,103570.0,103560.0,1.62440543]
[1747333671088,0.49208017,103570.0,103560.0,1.64371687]
[1747333671297,0.05220976,103570.0,103560.0,1.64371687]
[1747333671507,0.06186487,103570.0,103560.0,1.64371687]
[1747333671716,0.0522092,103570.0,103560.0,1.65825772]
[1747333671918,0.0522092,103570.0,103560.0,1.65873825]
[1747333671919,0.06286422,103570.0,103560.0,1.65873825]
[1747333672228,0.07351933,103570.0,103560.0,1.65873825]
[1747333674901,0.06386422,103570.0,103560.0,1.65873825]
[1747333675074,0.07351933,103570.0,103560.0,1.65873825]
[1747333675714,0.08317454,103570.0,103560.0,1.65873825]
[1747333675929,0.27628149,103570.0,103560.0,1.65873844]
[1747333676061,0.27628149,103570.0,103560.0,1.66839411]
[1747333676500,0.25697173,103570.0,103560.0,1.10334203]
[1747333676819,0.25697173,103570.0,103560.0,1.32543501]
[1747333677952,0.25697173,103570.0,103560.0,1.29158216]
[1747333678125,0.24731662,103570.0,103560.0,1.29158216]
[1747333678327,0.24731662,103570.0,103560.0,1.08880118]
[1747333678528,0.24731662,103570.0,103560.0,0.99149178]
[1747333682831,0.63731662,103570.0,103560.0,0.99149178]
[1747333684390,1.05791662,103570.0,103560.0,1.32479567]
[1747333684918,0.71591662,103570.0,103560.0,1.52757656]
[1747333685138,0.71791662,103570.0,103560.0,1.52757656]
[1747333685355,0.71791662,103570.0,103560.0,1.53723261]
[1747333685571,0.70826141,103570.0,103560.0,1.52757656]
[1747333685788,0.70826141,103570.0,103560.0,1.19427267]
[1747333686248,0.70626141,103570.0,103560.0,1.19427267]
[1747333686467,0.70626141,103570.0,103560.0,1.18461653]
[1747333686696,0.70926141,103570.0,103560.0,1.18461653]
[1747333687149,0.70926141,103570.0,103560.0,1.19427267]
[1747333687378,0.70926141,103570.0,103560.0,0.99149178]
[1747333687600,0.69960611,103570.0,103560.0,0.99149178]
[1747333688032,0.70160611,103570.0,103560.0,0.99149178]
[1747333689622,1.04160611,103570.0,103560.0,0.99149178]
[1747333691650,0.62100611,103570.0,103560.0,0.99149178]
[1747333691881,0.83052611,103570.0,103560.0,0.99149178]
[1747333692108,1.04970094,103570.0,103560.0,1.32479567]
[1747333692334,0.83052611,103570.0,103560.0,0.99149178]
[1747333693687,0.83052611,103570.0,103560.0,1.19427276]
[1747333693928,0.83052611,103570.0,103560.0,0.99149178]
[1747333694397,0.49052611,103570.0,103560.0,1.19427267]
[1747333694616,0.49052611,103570.0,103560.0,0.99149178]
[1747333695256,0.09755483,103570.0,103560.0,1.53723224]
[1747333695467,0.04070938,103570.0,103560.0,1.65873807]
[1747333696080,0.0503644,103570.0,103560.0,1.65873807]
[1747333697742,0.06001951,103570.0,103560.0,1.65873807]
[1747333698440,0.0503644,103570.0,103560.0,1.65873807]
[1747333699488,0.05036449,103570.0,103560.0,1.65873807]
[1747333699713,0.0503644,103570.0,103560.0,1.65873807]
[1747333699839,0.05036431,103570.0,103560.0,1.65873807]
[1747333700252,0.06001942,103570.0,103560.0,1.65873807]
[1747333700913,0.25312553,103570.0,103560.0,1.65873807]
[1747333701174,0.06001942,103570.0,103560.0,1.65873807]
[1747333701553,0.08627463,103570.0,103560.0,1.65873807]
[1747333702154,0.07661942,103570.0,103560.0,1.65873807]
[1747333703016,0.08627463,103570.0,103560.0,1.65873807]
[1747333703134,0.08627463,103570.0,103560.0,1.32543418]
[1747333703331,0.08627463,103570.0,103560.0,1.65873807]
[1747333703785,0.27938074,103570.0,103560.0,1.65873816]
[1747333704418,0.06696431,103570.0,103560.0,1.66839374]
[1747333704643,0.27938083,103570.0,103560.0,1.66839374]
[1747333705052,0.07661942,103570.0,103560.0,1.66839374]
[1747333705408,0.27938074,103570.0,103560.0,1.66839374]
[1747333706233,0.08627463,103570.0,103560.0,1.66839374]
[1747333706759,0.07661942,103570.0,103560.0,1.66839374]
[1747333706953,0.27938149,103570.0,103560.0,1.66839374]
[1747333707157,0.26972666,103570.0,103560.0,1.65873816]
[1747333707780,0.26972666,103570.0,103560.0,1.64908249]
[1747333708413,0.26007173,103570.0,103560.0,1.64908249]
[1747333710258,0.25041662,103570.0,103560.0,1.63942672]
[1747333710625,0.23110611,103570.0,103560.0,1.62977067]
[1747333710837,0.23110611,103570.0,103560.0,1.6394269]
[1747333711433,0.23110611,103570.0,103560.0,1.64908304]
[1747333711813,0.23110611,103570.0,103560.0,1.66839495]
[1747333712046,0.25041605,103570.0,103560.0,1.66839495]
[1747333713418,0.25041605,103570.0,103560.0,1.65873909]
[1747333713800,0.24076122,103570.0,103560.0,1.10334203]
[1747333714044,0.23110611,103570.0,103560.0,1.43664592]
[1747333714278,0.23110611,103570.0,103560.0,1.44646349]
[1747333714481,0.23110611,103570.0,103560.0,1.63958824]
[1747333714623,0.23110611,103570.0,103560.0,1.64924447]
[1747333715876,0.23110611,103570.0,103560.0,1.44646349]
[1747333717053,0.23110611,103570.0,103560.0,1.09861875]
[1747333717254,0.23110611,103570.0,103560.0,0.99149178]
[1747333718710,0.64958611,103570.0,103560.0,0.99149178]
[1747333719504,0.69958611,103570.0,103560.0,0.99149178]
[1747333723898,1.37289,103570.0,103560.0,0.99149178]
[1747333724104,1.4701994,103570.0,103560.0,0.99149178]
[1747333726941,1.13689551,103570.0,103560.0,0.99149178]
[1747333727158,1.4701994,103570.0,103560.0,0.99149178]
[1747333729207,1.13689551,103570.0,103560.0,0.99149178]
[1747333731242,1.4701994,103570.0,103560.0,0.99149178]
[1747333732485,1.13389551,103570.0,103560.0,0.99149178]
[1747333732693,1.4671994,103570.0,103560.0,0.99149178]
[1747333732899,1.4701994,103570.0,103560.0,0.99249178]
[1747333733210,1.13673551,103570.0,103560.0,0.99249178]
[1747333733408,0.71841551,103570.0,103560.0,0.99249178]
[1747333733600,1.13677551,103570.0,103560.0,0.99249178]
[1747333733960,1.13477551,103570.0,103560.0,0.99249178]
[1747333734161,1.13877551,103570.0,103560.0,0.99349178]
[1747333734369,1.4720794,103570.0,103560.0,0.99349178]
[1747333735372,1.5693888,103570.0,103560.0,0.99349178]
[1747333735607,1.4720794,103570.0,103560.0,0.99349178]
[1747333736530,1.80538329,103570.0,103560.0,0.99349178]
[1747333736761,6.85538329,103570.0,103560.0,0.97789178]
[1747333737397,6.85538329,103570.0,103560.0,0.96129178]
[1747333737614,6.95269269,103570.0,103560.0,0.96129178]
[1747333738245,6.5220794,103570.0,103560.0,0.96129178]
[1747333738464,6.53662025,103570.0,103560.0,0.92909178]
[1747333738652,0.58245708,103550.0,103540.0,0.0177965]
[1747333738869,1.01307037,103550.0,103540.0,0.0177965]
[1747333739065,1.43139037,103550.0,103540.0,0.0177965]
[1747333739274,1.49634581,103550.0,103540.0,0.0177965]
[1747333739890,1.07802581,103550.0,103540.0,0.0177965]
[1747333740101,1.49634581,103550.0,103540.0,0.0177965]
[1747333740323,1.09808648,103550.0,103540.0,0.0177965]
[1747333740534,1.10308648,103550.0,103540.0,0.0187965]
[1747333740944,1.10808648,103550.0,103540.0,0.0197965]
[1747333742370,0.89908648,103550.0,103540.0,0.0197965]
[1747333742574,1.07808648,103550.0,103540.0,0.0197965]
[1747333742982,1.09308648,103550.0,103540.0,0.0197965]
[1747333743200,1.10848648,103550.0,103540.0,0.0197965]
[1747333745131,1.20579588,103550.0,103540.0,0.0197965]
[1747333745358,1.09348648,103550.0,103540.0,0.0197965]
[1747333745596,1.07804648,103550.0,103540.0,0.0197965]
[1747333751196,1.09434648,103550.0,103540.0,0.0197965]
[1747333751369,1.10934648,103550.0,103540.0,0.0197965]
[1747333751571,1.20665588,103550.0,103540.0,0.0197965]
[1747333751765,1.20613588,103550.0,103540.0,0.0197965]
[1747333753210,1.10882648,103550.0,103540.0,0.0197965]
[1747333753690,1.07752648,103550.0,103540.0,0.0197965]
[1747333760682,1.07740648,103550.0,103540.0,0.0197965]
[1747333761086,1.49468648,103550.0,103540.0,0.0197965]
[1747333763065,1.28596648,103550.0,103540.0,0.0197965]
[1747333763384,1.49464648,103550.0,103540.0,0.0513965]
[1747333765059,1.49464648,103550.0,103540.0,0.0197965]
[1747333765267,1.62325588,103550.0,103540.0,0.0197965]
[1747333765676,1.52594648,103550.0,103540.0,0.0197965]
[1747333771713,1.85925037,103550.0,103540.0,0.0197965]
[1747333772315,1.87904737,103550.0,103540.0,0.0197965]
[1747333772951,6.9558868,103550.0,103540.0,0.0197965]
[1747333773773,6.92904737,103550.0,103540.0,0.0197965]
[1747333773979,7.04089762,103550.0,103540.0,0.0197965]
[1747333774183,7.07772863,103550.0,103540.0,0.0197965]
[1747333775789,7.07272863,103550.0,103540.0,0.0187965]
[1747333776001,7.05772863,103550.0,103540.0,0.0177965]
[1747333776274,7.05772863,103550.0,103520.0,0.00206]
[1747333776275,0.59913897,103530.0,103520.0,0.00206]
[1747333776473,6.96008793,103530.0,103520.0,0.00206]
[1747333776706,6.62678404,103530.0,103520.0,0.00206]
[1747333777563,6.67427065,103530.0,103520.0,0.00206]
[1747333778580,6.69227065,103530.0,103520.0,0.00206]
[1747333780744,6.70699403,103530.0,103520.0,0.00206]
[1747333781001,6.62520225,103530.0,103520.0,0.00206]
[1747333781443,6.67520225,103530.0,103520.0,0.00206]
[1747333784958,7.00850614,103530.0,103520.0,0.00206]
[1747333785162,6.67520225,103530.0,103520.0,0.00206]
[1747333785363,6.77251165,103530.0,103520.0,0.00206]
[1747333786747,6.7578908,103530.0,103520.0,0.00206]
[1747333786869,6.3411308,103530.0,103520.0,0.00206]
[1747333787085,6.7579308,103530.0,103520.0,0.00206]
[1747333788718,0.82841751,103530.0,103520.0,0.00206]
[1747333788926,1.24517751,103530.0,103520.0,0.00206]
[1747333789271,1.24517751,103530.0,103520.0,0.03326]
[1747333789272,0.48841751,103530.0,103520.0,0.03326]
[1747333789613,0.82777151,103530.0,103520.0,0.03326]
[1747333789762,0.61949151,103530.0,103520.0,0.03326]
[1747333789966,0.82777151,103530.0,103520.0,0.03326]
[1747333790143,0.71569873,103530.0,103520.0,0.36656389]
[1747333790360,1.05569873,103530.0,103520.0,0.36656389]
[1747333790741,1.05569873,103530.0,103520.0,0.03326]
[1747333790970,1.03769873,103530.0,103520.0,0.03326]
[1747333791170,1.05069873,103530.0,103520.0,0.36656389]
[1747333791435,0.50245873,103530.0,103520.0,0.36656389]
[1747333791610,0.48945873,103530.0,103520.0,0.36656389]
[1747333791971,0.47245873,103530.0,103520.0,0.36656389]
[1747333792172,0.47245873,103530.0,103520.0,0.03426]
[1747333792173,0.47345873,103530.0,103520.0,0.03426]
[1747333792383,0.47345873,103530.0,103520.0,0.36756389]
[1747333792986,0.47245873,103530.0,103520.0,0.36656389]
[1747333793345,0.47345873,103530.0,103520.0,0.36756389]
[1747333793553,0.47245873,103530.0,103520.0,0.36756389]
[1747333793772,0.47345873,103530.0,103520.0,0.36856389]
[1747333795614,0.47345873,103530.0,103520.0,0.03526]
[1747333799345,1.00807753,103530.0,103520.0,0.03526]
[1747333800160,0.91076813,103530.0,103520.0,0.03526]
[1747333800609,1.27607202,103530.0,103520.0,0.00406]
[1747333801354,0.94276813,103530.0,103520.0,0.00406]
[1747333801531,1.24207202,103530.0,103520.0,0.00206]
[1747333801689,1.24507202,103530.0,103520.0,0.00206]
[1747333801889,1.28007202,103530.0,103520.0,0.00206]
[1747333802667,1.27707202,103530.0,103520.0,0.00206]
[1747333803095,1.29307202,103530.0,103520.0,0.00206]
[1747333803297,1.27707202,103530.0,103520.0,0.00206]
[1747333803523,1.27407202,103530.0,103520.0,0.00206]
[1747333803962,1.29007202,103530.0,103520.0,0.00206]
[1747333804166,1.38738142,103530.0,103520.0,0.00206]
[1747333804502,0.61878003,103510.0,103500.0,0.002]
[1747333804712,6.77355332,103510.0,103500.0,0.002]
[1747333805902,6.4499412,103510.0,103500.0,0.002]
[1747333806097,6.88055449,103510.0,103500.0,0.002]
[1747333806362,6.89855449,103510.0,103500.0,0.002]
[1747333806522,6.91945685,103510.0,103500.0,0.002]
[1747333806700,7.25276074,103510.0,103500.0,0.002]
[1747333806904,6.92323935,103510.0,103500.0,0.002]
[1747333807140,7.34654324,103510.0,103500.0,0.002]
[1747333807348,7.38573883,103510.0,103500.0,0.002]
[1747333807694,7.36773883,103510.0,103500.0,0.002]
[1747333807920,7.35073883,103510.0,103500.0,0.002]
[1747333808159,7.04443494,103510.0,103500.0,0.002]
[1747333808286,6.99755449,103510.0,103500.0,0.002]
[1747333808721,6.92724509,103510.0,103500.0,0.002]
[1747333808933,6.7842612,103510.0,103500.0,0.002]
[1747333809125,7.11756509,103510.0,103500.0,0.002]
[1747333809333,6.72880509,103510.0,103500.0,0.002]
[1747333809584,7.14456509,103510.0,103500.0,0.002]
[1747333809794,7.56517838,103510.0,103500.0,0.002]
[1747333810175,7.58986324,103510.0,103500.0,0.002]
[1747333811851,0.58328026,103490.0,103480.0,0.01207916]
[1747333812052,6.06389355,103490.0,103480.0,0.01207916]
[1747333812417,6.07899355,103490.0,103480.0,0.01207916]
[1747333812615,6.17630295,103490.0,103480.0,0.01207916]
[1747333813001,6.20330295,103490.0,103480.0,0.01207916]
[1747333813206,6.21835757,103490.0,103480.0,0.01207916]
[1747333813408,6.24535757,103490.0,103480.0,0.01207916]
[1747333813616,6.26989842,103490.0,103480.0,0.01207916]
[1747333813854,7.02396231,103490.0,103480.0,0.01207916]
[1747333814062,6.71534328,103490.0,103480.0,0.01207916]
[1747333814465,6.69065842,103490.0,103480.0,0.01207916]
[1747333814685,6.60334902,103490.0,103480.0,0.01207916]
[1747333815123,0.58312136,103470.0,103460.0,0.002]
[1747333815333,6.39703854,103470.0,103460.0,0.002]
[1747333815541,6.42157939,103470.0,103460.0,0.002]
[1747333815747,6.51888879,103470.0,103460.0,0.002]
[1747333815963,6.1855849,103470.0,103460.0,0.002]
[1747333816184,6.6030649,103470.0,103460.0,0.002]
[1747333816458,6.93836879,103470.0,103460.0,0.002]
[1747333816896,6.93636879,103470.0,103460.0,0.002]
[1747333817341,6.86605939,103470.0,103460.0,0.002]
[1747333817766,6.89305939,103470.0,103460.0,0.002]
[1747333818223,6.52001465,103470.0,103460.0,0.002]
[1747333818633,6.95227465,103470.0,103460.0,0.002]
[1747333819422,6.53651465,103470.0,103460.0,0.002]
[1747333819630,7.04958405,103470.0,103460.0,0.002]
[1747333819832,6.71628016,103470.0,103460.0,0.002]
[1747333820053,7.04958405,103470.0,103460.0,0.002]
[1747333820830,7.19962879,103470.0,103460.0,0.002]
[1747333821032,0.58416245,103450.0,103440.0,0.0177965]
[1747333821237,6.1929248,103450.0,103440.0,0.0177965]
[1747333821675,6.2219528,103450.0,103440.0,0.0177965]
[1747333822319,6.25893618,103450.0,103440.0,0.0177965]
[1747333822493,6.26093618,103450.0,103440.0,0.0177965]
[1747333822728,6.28533306,103450.0,103440.0,0.0177965]
[1747333823126,6.28533306,103450.0,103440.0,0.01006138]
[1747333823392,6.28333306,103450.0,103440.0,0.01006138]
[1747333823594,6.31033306,103450.0,103440.0,0.01006138]
[1747333823910,6.25417987,103450.0,103440.0,0.01006138]
[1747333824115,1.17267987,103450.0,103440.0,0.01006138]
[1747333824422,1.50398376,103450.0,103440.0,0.01006138]
[1747333824765,1.53098376,103450.0,103440.0,0.01006138]
[1747333825406,1.53098376,103450.0,103440.0,0.02606138]
[1747333825750,1.56822363,103450.0,103440.0,0.02606138]
[1747333826721,1.53098376,103450.0,103440.0,0.02606138]
[1747333827256,1.53098376,103450.0,103440.0,0.04176138]
[1747333827461,1.19767987,103450.0,103440.0,0.04176138]
[1747333827666,1.53098376,103450.0,103440.0,0.01006138]
[1747333829994,1.19771987,103450.0,103440.0,0.02526138]
[1747333830220,0.44187987,103450.0,103440.0,0.04096138]
[1747333830401,0.57249187,103450.0,103440.0,0.04096138]
[1747333830634,0.36445187,103450.0,103440.0,0.04096138]
[1747333830864,1.12029187,103450.0,103440.0,0.04096138]
[1747333831439,1.09329187,103450.0,103440.0,0.04096138]
[1747333831645,1.11029187,103450.0,103440.0,0.04096138]
[1747333831803,0.90249187,103450.0,103440.0,0.04096138]
[1747333832016,1.11029187,103450.0,103440.0,0.04096138]
[1747333832216,0.66745187,103450.0,103440.0,0.04096138]
[1747333832442,1.10129187,103450.0,103440.0,0.04096138]
[1747333833262,0.90796176,103450.0,103440.0,0.04096138]
[1747333833619,0.49212176,103450.0,103440.0,0.04096138]
[1747333833826,0.45132002,103450.0,103440.0,0.37426527]
[1747333834284,0.79132002,103450.0,103440.0,0.37426527]
[1747333834549,0.54862942,103450.0,103440.0,0.04096138]
[1747333834754,0.88862942,103450.0,103440.0,0.04096138]
[1747333834965,0.87162942,103450.0,103440.0,0.04096138]
[1747333835170,0.85362942,103450.0,103440.0,0.04096138]
[1747333835633,0.85562942,103450.0,103440.0,0.04196138]
[1747333835846,0.85862942,103450.0,103440.0,0.04296138]
[1747333837803,0.76132002,103450.0,103440.0,0.04296138]
[1747333838065,0.76104002,103450.0,103440.0,0.04296138]
[1747333838281,0.002,103470.0,103440.0,0.79345289]
[1747333838499,0.002,103470.0,103460.0,0.0314]
[1747333840763,0.005,103470.0,103460.0,0.0324]
[1747333840992,0.005,103470.0,103460.0,0.001]
[1747333841193,0.4423094,103470.0,103460.0,0.001]
[1747333841580,0.6490694,103470.0,103460.0,0.001]
[1747333842045,1.07968269,103470.0,103460.0,0.001]
[1747333842260,1.40001329,103470.0,103460.0,0.001]
[1747333843103,1.0667094,103470.0,103460.0,0.001]
[1747333844654,1.0667094,103470.0,103460.0,0.0162]
[1747333844897,1.0667094,103470.0,103460.0,0.0325]
[1747333846296,0.8589494,103470.0,103460.0,0.0325]
[1747333846775,1.2760294,103470.0,103460.0,0.0325]
[1747333846995,1.60933329,103470.0,103460.0,0.001]
[1747333847207,1.2760294,103470.0,103460.0,0.001]
[1747333848164,1.2760294,103470.0,103460.0,0.0325]
[1747333849080,1.2776694,103470.0,103460.0,0.0325]
[1747333849301,1.2776294,103470.0,103460.0,0.0325]
[1747333853009,1.2769094,103470.0,103460.0,0.0325]
[1747333855921,1.0666694,103470.0,103460.0,0.0325]
[1747333856151,1.17888,103470.0,103460.0,0.0325]
[1747333856277,1.17888,103470.0,103460.0,0.36580389]
[1747333856480,1.17888,103470.0,103460.0,0.0325]
[1747333860320,0.21172,103470.0,103460.0,0.36580389]
[1747333860529,0.004,103470.0,103460.0,0.36580389]
[1747333861173,0.004,103470.0,103460.0,0.81095803]
[1747333861793,0.004,103470.0,103460.0,0.80995803]
[1747333861798,0.002,103470.0,103460.0,0.80995803]
[1747333861999,0.002,103490.0,103480.0,0.032]
[1747333862201,0.002,103490.0,103480.0,0.37984474]
[1747333862547,0.002,103490.0,103480.0,0.36530389]
[1747333862753,0.002,103490.0,103480.0,0.47715414]
[1747333863360,0.002,103490.0,103480.0,0.47729746]
[1747333864526,0.005,103490.0,103480.0,0.48029746]
[1747333865038,0.003,103490.0,103480.0,0.48029746]
[1747333865241,0.003,103490.0,103480.0,0.48129746]
[1747333870387,0.003,103490.0,103480.0,0.14799357]
[1747333870709,0.003,103490.0,103480.0,0.48322983]
[1747333870930,0.003,103490.0,103480.0,0.48129746]
[1747333872428,0.003,103490.0,103480.0,0.03614332]
[1747333873223,0.003,103490.0,103480.0,0.36944721]
[1747333874354,0.003,103490.0,103480.0,0.03614332]
[1747333875425,0.003,103490.0,103480.0,0.36944721]
[1747333876242,0.003,103490.0,103480.0,0.48129746]
[1747333879191,0.003,103490.0,103480.0,0.36944721]
[1747333881356,0.003,103490.0,103480.0,0.03614332]
[1747333881902,0.003,103490.0,103480.0,0.36944721]
[1747333882300,0.003,103490.0,103480.0,0.03614332]
[1747333882549,0.003,103490.0,103480.0,0.36944721]
[1747333885530,0.053,103490.0,103480.0,0.48129746]
[1747333885736,0.003,103490.0,103480.0,0.48129746]
[1747333888243,0.6952,103510.0,103500.0,0.0317]
[1747333888461,0.6952,103510.0,103500.0,0.69830778]
[1747333888883,0.6952,103510.0,103500.0,0.36500389]
[1747333889241,0.6952,103510.0,103500.0,0.69830778]
[1747333889643,0.6952,103510.0,103500.0,0.71284863]
[1747333890029,0.002,103510.0,103500.0,0.71284863]
[1747333890230,0.005,103510.0,103500.0,0.71584863]
[1747333890420,0.004,103510.0,103500.0,0.81015803]
[1747333890620,0.002,103510.0,103500.0,0.81315803]
[1747333890847,0.003,103510.0,103500.0,0.81315803]
[1747333891063,0.003,103510.0,103500.0,0.81415803]
[1747333894266,0.002,103530.0,103510.0,0.03084085]
[1747333894477,0.19518452,103530.0,103520.0,0.67228518]
[1747333894684,0.19518452,103530.0,103520.0,0.47715414]
[1747333894893,0.19518452,103530.0,103510.0,0.03084085]
[1747333894894,0.19321767,103520.0,103510.0,0.03084085]
[1747333895108,0.19321767,103520.0,103510.0,0.67037218]
[1747333895329,0.19321804,103510.0,103500.0,0.57708145]
[1747333895545,0.19321804,103510.0,103500.0,0.67039085]
[1747333895749,0.19321767,103520.0,103500.0,1.00383806]
[1747333895946,0.19321767,103520.0,103510.0,0.33330389]
[1747333897014,0.19321804,103510.0,103500.0,0.00214332]
[1747333897218,0.19321804,103510.0,103500.0,0.33544721]
[1747333897569,0.19321804,103510.0,103500.0,0.33344721]
[1747333898209,0.19321804,103510.0,103500.0,0.00014332]
[1747333898413,0.19321804,103510.0,103500.0,0.33344721]
[1747333899014,0.20931804,103510.0,103500.0,0.33344721]
[1747333899219,0.19321804,103510.0,103500.0,0.33644721]
[1747333899427,0.19321804,103510.0,103500.0,0.33844721]
[1747333900197,0.19321804,103510.0,103500.0,0.56388392]
[1747333900427,0.19321804,103510.0,103500.0,0.92595613]
[1747333900629,0.19321804,103510.0,103500.0,1.03780638]
[1747333901498,0.19321767,103520.0,103510.0,0.22491804]
[1747333901710,0.19321767,103520.0,103510.0,0.36500389]
[1747333902716,0.19321767,103520.0,103510.0,0.34980389]
[1747333902990,0.19321767,103520.0,103510.0,0.001]
[1747333904565,0.24321767,103520.0,103510.0,0.001]
[1747333904765,0.19321767,103520.0,103510.0,0.001]
[1747333904978,0.19321767,103520.0,103510.0,0.33430389]
[1747333906790,0.19321767,103520.0,103510.0,0.001]
[1747333907203,0.19321767,103520.0,103510.0,0.33430389]
[1747333908280,0.41774452,103530.0,103510.0,0.58860349]
[1747333908486,0.61030452,103530.0,103520.0,0.33330389]
[1747333908719,0.19518452,103530.0,103520.0,0.33330389]
[1747333909366,0.20285934,103520.0,103510.0,0.23597884]
[1747333909523,0.20285934,103520.0,103510.0,0.56828273]
[1747333910744,0.20285934,103520.0,103510.0,0.56928273]
[1747333913536,0.20285934,103520.0,103510.0,0.55962193]
[1747333913766,0.20285934,103520.0,103510.0,0.56928283]
[1747333915712,0.20285934,103520.0,103510.0,0.36640389]
[1747333916016,0.20285934,103520.0,103510.0,0.33430389]
[1747333916636,0.20285934,103520.0,103510.0,0.001]
[1747333916637,0.21875934,103520.0,103510.0,0.001]
[1747333916833,0.23465934,103520.0,103510.0,0.001]
[1747333917280,0.44213934,103520.0,103510.0,0.001]
[1747333919022,0.49213934,103520.0,103510.0,0.001]
[1747333919902,0.49213934,103520.0,103510.0,0.33430389]
[1747333920341,0.49213934,103520.0,103510.0,0.001]
[1747333921263,0.28465934,103520.0,103510.0,0.001]
[1747333921472,0.69965934,103520.0,103510.0,0.001]
[1747333921889,0.66785934,103520.0,103510.0,0.001]
[1747333922057,0.68365934,103520.0,103510.0,0.33430389]
[1747333922291,0.69905934,103520.0,103510.0,0.001]
[1747333923455,0.79636874,103520.0,103510.0,0.001]
[1747333924991,0.79636874,103520.0,103510.0,0.33430389]
[1747333925232,0.69905934,103520.0,103510.0,0.33430389]
[1747333925435,0.46041934,103520.0,103510.0,0.33430389]
[1747333925647,0.05965968,103520.0,103510.0,0.58880379]
[1747333925859,0.22217842,103520.0,103510.0,0.57914363]
[1747333926066,0.22217842,103520.0,103510.0,0.58880434]
[1747333926912,0.22217842,103520.0,103510.0,0.59846477]
[1747333927116,0.02897904,103520.0,103510.0,0.58880434]
[1747333927335,0.2241567,103530.0,103520.0,0.23525925]
[1747333927573,0.2241567,103530.0,103520.0,0.56856314]
[1747333927829,0.21449832,103530.0,103520.0,0.56856314]
[1747333928048,0.20483966,103530.0,103520.0,0.56856314]
[1747333928222,0.20483966,103530.0,103520.0,0.5878826]
[1747333928463,0.20683966,103530.0,103520.0,0.57822292]
[1747333928671,0.20683966,103530.0,103520.0,0.56856314]
[1747333928887,0.20683966,103530.0,103520.0,0.57822282]
[1747333929626,0.004,103530.0,103520.0,0.58788241]
[1747333929985,0.03297578,103530.0,103520.0,0.69485112]
[1747333930426,0.23581553,103530.0,103520.0,0.69485131]
[1747333930629,0.23381553,103530.0,103520.0,0.70451071]
[1747333931245,0.02131694,103530.0,103520.0,0.70451071]
[1747333931447,0.002,103530.0,103520.0,1.05235489]
[1747333934005,0.002,103530.0,103520.0,1.39235489]
[1747333934615,0.002,103530.0,103520.0,1.39435489]
[1747333936765,0.002,103530.0,103520.0,1.061051]
[1747333936766,0.01165819,103530.0,103520.0,1.061051]
[1747333937368,0.02131657,103530.0,103520.0,1.061051]
[1747333937613,0.01165819,103530.0,103520.0,1.39435489]
[1747333938563,0.002,103530.0,103520.0,1.39435489]
[1747333939358,0.0213133,103550.0,103540.0,0.60137998]
[1747333939576,0.02131321,103550.0,103540.0,0.69868938]
[1747333939776,0.03097019,103550.0,103540.0,0.69868938]
[1747333940364,0.04262726,103550.0,103540.0,0.69868938]
[1747333940557,0.04262726,103550.0,103540.0,0.6988327]
[1747333940886,0.04262708,103550.0,103540.0,0.6988327]